lending/lending_fUSD_20251016
["ID","MTS","AMOUNT","RATE_DAILY","PERIOD"]
[391533290,1760633574648,-151.0,0.00022,2]
[391533291,1760633574658,-173.5253298,0.00022,2]
[391533292,1760633574668,-1000.0,0.00022,2]
[391533293,1760633574678,-1000.0,0.00022,2]
[391533294,1760633574688,-1000.0,0.00022,2]
[391533295,1760633574700,-1000.0,0.00022,2]
[391533296,1760633574711,-1000.0,0.00022,2]
[391533297,1760633574722,-1000.0,0.00022,2]
[391533298,1760633574732,-1000.0,0.00022,2]
[391533299,1760633574742,-628.61100759,0.00022,2]
[391533300,1760633574752,-9839.4320412,0.00022,2]
[391533301,1760633574763,-1429.71,0.00022,2]
[391533302,1760633574773,-1769.0,0.00022011,2]
[391533303,1760633574783,-278.0,0.00022022,2]
[391533304,1760633574793,-1769.0,0.00022142,2]
[391533305,1760633574803,-182.0,0.00022171,2]
[391533306,1760633574812,-278.0,0.00022183,2]
[391533307,1760633574824,-500.0,0.0002219,2]
[391533308,1760633574834,-500.0,0.0002219,2]
[391533309,1760633574845,-500.0,0.0002219,2]
[391533310,1760633574855,-500.0,0.0002219,2]
[391533311,1760633574865,-500.0,0.0002219,2]
[391533312,1760633574875,-500.0,0.0002219,2]
[391533313,1760633574886,-500.0,0.0002219,2]
[391533314,1760633574896,-500.0,0.0002219,2]
[391533315,1760633574906,-2938.13,0.0002219,2]
[391533316,1760633574916,-500.0,0.0002219,2]
[391533317,1760633574927,-708.12,0.0002219,2]
[391533318,1760633574937,-500.0,0.0002219,2]
[391533319,1760633574949,-500.0,0.0002219,2]
[391533320,1760633574959,-500.0,0.0002219,2]
[391533321,1760633574969,-74.47884289,0.0002219,2]
[391533322,1760633575279,-498.92586001,0.00017161,2]
[391533323,1760633575292,-1.07413999,0.00017161,2]
[391533324,1760633575303,-500.0,0.00017161,2]
[391533325,1760633575314,-500.0,0.00017161,2]
[391533326,1760633575324,-500.0,0.00017161,2]
[391533327,1760633575333,-500.0,0.00017161,2]
[391533328,1760633575343,-425.52115711,0.0002219,2]
[391533329,1760633575353,-500.0,0.0002219,2]
[391533330,1760633575363,-500.0,0.0002219,2]
[391533331,1760633575373,-553.6,0.0002219,2]
[391533332,1760633575383,-500.0,0.0002219,2]
[391533333,1760633575392,-500.0,0.0002219,2]
[391533334,1760633575402,-500.0,0.0002219,2]
[391533335,1760633575412,-500.0,0.0002219,2]
[391533336,1760633575422,-500.0,0.0002219,2]
[391533337,1760633575432,-500.0,0.0002219,2]
[391533338,1760633575442,-416.24,0.0002219,2]
[391533339,1760633575454,-500.0,0.0002219,2]
[391533340,1760633575464,-451.1223029,0.0002219,2]
[391533341,1760633575484,-48.8776971,0.0002219,2]
[391533342,1760633575494,-500.0,0.0002219,2]
[391533343,1760633575504,-500.0,0.0002219,2]
[391533344,1760633575514,-500.0,0.0002219,2]
[391533345,1760633575524,-500.0,0.0002219,2]
[391533346,1760633575534,-487.87,0.000222,7]
[391533347,1760633575544,-465.3,0.000222,7]
[391533348,1760633575553,-182.0,0.00022211,2]
[391533349,1760633575563,-1600.0,0.00022255,2]
[391533350,1760633575572,-168.0,0.00022292,2]
[391533351,1760633575582,-601.59745031,0.000223,2]
[391533352,1760633575592,-2710.0,0.00022353,2]
[391533353,1760633575602,-164.58780628,0.00022364,2]
[391533354,1760633575613,-2568.50742526,0.000224,2]
[391533355,1760633575646,-678.95674636,0.000224,2]
[391533356,1760633575658,-1720.61193751,0.000224,2]
[391533357,1760633575670,-31.92389087,0.000224,2]
[391533358,1760633575680,-481.17819343,0.000224,2]
[391533359,1760633575692,-4518.82180657,0.000224,2]
[391533360,1760633575705,-182.0,0.00022404,2]
[391533361,1760633575715,-278.0,0.00022445,2]
[391533362,1760633575725,-168.0,0.00022457,2]
[391533363,1760633575735,-2938.13,0.00022462,2]
[391533364,1760633575745,-708.12,0.00022462,2]
[391533365,1760633575755,-500.0,0.00022462,2]
[391533366,1760633575765,-500.0,0.00022462,2]
[391533367,1760633575776,-500.0,0.00022462,2]
[391533368,1760633575786,-500.0,0.00022462,2]
[391533369,1760633575797,-500.0,0.00022462,2]
[391533370,1760633575807,-500.0,0.00022462,2]
[391533371,1760633575818,-500.0,0.00022462,2]
[391533372,1760633575828,-250.42,0.00022462,2]
[391533373,1760633575837,-500.0,0.00022462,2]
[391533374,1760633575848,-71729.68582926,0.00022463,7]
[391533375,1760633575858,-500.0,0.00022464,2]
[391533376,1760633575867,-500.0,0.00022464,2]
[391533377,1760633575877,-600.0,0.00022466,2]
[391533378,1760633575887,-164.67077904,0.00022466,2]
[391533379,1760633575898,-474.43529021,0.0002247,7]
[391533380,1760633575909,-500.0,0.00022473,2]
[391533381,1760633575918,-500.0,0.00022473,2]
[391533382,1760633575932,-500.0,0.00022473,2]
[391533383,1760633575942,-500.0,0.00022473,2]
[391533384,1760633575956,-500.0,0.00022473,2]
[391533385,1760633575966,-1140.45,0.00022499,2]
[391533386,1760633575978,-500.0,0.00022499,2]
[391533387,1760633575988,-735.18,0.00022499,2]
[391533388,1760633575997,-1981.31,0.00022499,24]
[391533389,1760633576007,-1981.31,0.00022499,26]
[391533390,1760633576020,-1981.31,0.00022499,28]
[391533391,1760633576031,-1981.31,0.00022499,30]
[391533392,1760633576041,-1981.31,0.00022499,32]
[391533393,1760633576051,-500.0,0.00022499,2]
[391533394,1760633576061,-500.0,0.00022499,2]
[391533395,1760633576070,-500.0,0.00022499,2]
[391533396,1760633576080,-120000.53,0.000225,7]
[391533397,1760633576090,-1000.0,0.00022509,2]
[391533398,1760633576100,-280.0,0.00022583,2]
[391533399,1760633576110,-500.0,0.00022599,2]
[391533400,1760633576120,-500.0,0.00022599,2]
[391533401,1760633576131,-500.0,0.00022599,2]
[391533402,1760633576140,-500.0,0.00022599,2]
[391533403,1760633576151,-47.49424324,0.00022599,2]
[391533404,1760633576213,-452.50575676,0.00022599,2]
[391533405,1760633576223,-500.0,0.00022599,2]
[391533406,1760633576232,-500.0,0.00022599,2]
[391533407,1760633576243,-500.0,0.00022599,2]
[391533408,1760633576253,-305.49462475,0.00022599,2]
[391533409,1760633576263,-500.0,0.00022599,2]
[391533410,1760633576273,-500.0,0.00022599,2]
[391533411,1760633576283,-500.0,0.00022599,2]
[391533412,1760633576292,-500.0,0.00022599,2]
[391533413,1760633576302,-500.0,0.00022599,2]
[391533414,1760633576311,-500.0,0.00022599,2]
[391533415,1760633576321,-500.0,0.00022599,2]
[391533416,1760633576331,-500.0,0.00022599,2]
[391533417,1760633576340,-500.0,0.00022599,2]
[391533418,1760633576350,-500.0,0.00022599,2]
[391533419,1760633576359,-331.73673926,0.00022599,2]
[391533420,1760633576368,-500.0,0.00022599,2]
[391533421,1760633576378,-184.08,0.00022599,2]
[391533422,1760633576388,-451.74062,0.000226,2]
[391533423,1760633576398,-2115.0,0.00022603,2]
[391533424,1760633576407,-168.0,0.00022623,2]
[391533425,1760633576909,-207.6,0.0002264,2]
[391533426,1760633576933,-500.0,0.0002264,2]
[391533427,1760633576943,-500.0,0.0002264,2]
[391533428,1760633576954,-500.0,0.0002264,2]
[391533429,1760633576964,-500.0,0.0002264,2]
[391533430,1760633576974,-500.0,0.0002264,2]
[391533431,1760633576984,-500.0,0.0002264,2]
[391533432,1760633576994,-500.0,0.0002264,2]
[391533433,1760633577004,-500.0,0.0002264,2]
[391533434,1760633577015,-2938.13,0.00022641,2]
[391533435,1760633577025,-500.0,0.00022641,2]
[391533436,1760633577035,-500.0,0.00022641,2]
[391533437,1760633577045,-500.0,0.00022641,2]
[391533438,1760633577055,-500.0,0.00022641,2]
[391533439,1760633577064,-500.0,0.00022641,2]
[391533440,1760633577074,-625.63,0.00022641,2]
[391533441,1760633577083,-292.60058795,0.00022641,2]
[391533442,1760633577094,-500.0,0.00022641,2]
[391533443,1760633577104,-1140.45,0.00022641,2]
[391533444,1760633577114,-501.8975631,0.00022641,2]
[391533445,1760633577124,-735.18,0.00022641,2]
[391533446,1760633577134,-500.0,0.00022641,2]
[391533447,1760633577146,-500.0,0.00022641,2]
[391533448,1760633577156,-2696.69800601,0.00022642,7]
[391533449,1760633577166,-49827.946467,0.00022642,7]
[391533450,1760633577177,-30202.23408339,0.00022642,7]
[391533451,1760633577194,-2785.63913308,0.00022642,7]
[391533452,1760633577207,-4171.74569362,0.00022642,7]
[391533453,1760633577222,-14314.75848,0.00022642,7]
[391533454,1760633577234,-717.91807822,0.00022642,7]
[391533455,1760633577246,-294.22488331,0.00022642,7]
[391533456,1760633577257,-543.2427,0.00022642,7]
[391533457,1760633577351,-266.02630796,0.00017161,2]
[391533458,1760633577363,-233.97369204,0.00017161,2]
[391533459,1760633577374,-500.0,0.00017161,2]
[391533460,1760633577384,-150.181,0.00020817,2]
[391533461,1760633577393,-3052.30872787,0.00022642,7]
[391533462,1760633577405,-277.5419292,0.00022642,7]
[391533463,1760633577416,-6127.49999998,0.00022642,7]
[391533464,1760633577480,-10357.17123314,0.00022642,7]
[391533465,1760633577492,-15271.185296,0.00022642,7]
[391533466,1760633577503,-1113.0,0.00022642,7]
[391533467,1760633577515,-5425.3692,0.00022642,7]
[391533468,1760633577577,-3067.65998209,0.00022642,7]
[391533469,1760633577588,-5075.8336303,0.00022642,7]
[391533470,1760633577598,-1972.63844684,0.00022642,7]
[391533471,1760633577608,-4643.57958026,0.00022642,7]
[391533472,1760633577618,-5797.52492238,0.00022642,7]
[391533473,1760633577628,-158.86,0.00022659,2]
[391533474,1760633577637,-500.0,0.00022673,2]
[391533475,1760633577647,-500.0,0.00022673,2]
[391533476,1760633577656,-500.0,0.00022673,2]
[391533477,1760633577665,-278.0,0.00022686,2]
[391533478,1760633577675,-168.0,0.00022703,2]
[391533479,1760633577684,-180.02627482,0.00022714,2]
[391533480,1760633577694,-182.0,0.00022738,2]
[391533481,1760633577706,-168.0,0.00022749,2]
[391533482,1760633577716,-1334.90028858,0.00022759,2]
[391533483,1760633577726,-168.0,0.00022795,2]
[391533484,1760633577736,-278.0,0.00022825,2]
[391533485,1760633577746,-1981.31,0.00022967,34]
[391533486,1760633577756,-500.0,0.00022999,2]
[391533487,1760633577768,-500.0,0.00022999,2]
[391533488,1760633577777,-500.0,0.00022999,2]
[391533489,1760633577788,-500.0,0.00022999,2]
[391533490,1760633577798,-500.0,0.00022999,2]
[391533491,1760633577808,-500.0,0.00022999,2]
[391533492,1760633577819,-500.0,0.00022999,2]
[391533493,1760633577829,-500.0,0.00022999,2]
[391533494,1760633577839,-500.0,0.00022999,2]
[391533495,1760633577849,-1140.45,0.00022999,2]
[391533496,1760633577859,-1140.45,0.00022999,2]
[391533497,1760633577868,-161.07,0.00023,2]
[391533498,1760633577878,-55555.0,0.00023001,3]
[391533499,1760633577887,-600.0,0.00023014,2]
[391533500,1760633577899,-635.70235998,0.00023021,2]
[391533501,1760633577908,-1000.0,0.00023021,2]
[391533502,1760633577919,-1000.0,0.00023021,2]
[391533503,1760633577930,-1000.0,0.00023021,2]
[391533504,1760633577943,-695.60391607,0.00023021,2]
[391533505,1760633577957,-546.62,0.00023028,2]
[391533506,1760633577967,-150.0,0.00023028,2]
[391533507,1760633577977,-150.0,0.00023028,2]
[391533508,1760633577988,-336.34,0.00023029,2]
[391533509,1760633577999,-152.0,0.0002306,3]
[391533510,1760633578011,-278.0,0.00023069,2]
[391533511,1760633578021,-500.0,0.00023101,2]
[391533512,1760633578031,-1000.0,0.00023221,2]
[391533513,1760633578040,-801.42904761,0.00023221,2]
[391533514,1760633578050,-1000.0,0.00023221,2]
[391533515,1760633578060,-359.76179104,0.00023272,2]
[391533516,1760633578070,-416.77670354,0.00023283,2]
[391533517,1760633578080,-1774.23,0.00023369,2]
[391533518,1760633578090,-280.0,0.00023371,2]
[391533519,1760633578099,-164.58780627,0.00023396,2]
[391533520,1760633578109,-500.0,0.00023399,2]
[391533521,1760633578119,-500.0,0.00023399,2]
[391533522,1760633578128,-158.9,0.00023437,2]
[391533523,1760633578138,-601.59745026,0.00023488,2]
[391533524,1760633578147,-600.0,0.00023562,2]
[391533525,1760633578157,-500.39049434,0.00023568,2]
[391533526,1760633578167,-451.74062,0.000236,2]
[391533527,1760633578176,-1529.25699019,0.00023676,2]
[391533528,1760633578185,-500.47029499,0.00023768,2]
[391533529,1760633578195,-212.939,0.00023817,2]
[391533530,1760633578211,-150.0,0.00023835,2]
[391533531,1760633578220,-1186.51,0.00023836,2]
[391533532,1760633578230,-170.32177746,0.00023837,2]
[391533533,1760633578240,-735.18,0.00023999,2]
[391533534,1760633578249,-11023.03902147,0.00024,2]
[391533535,1760633578259,-1000.0,0.00024,2]
[391533536,1760633578269,-500.0,0.0002405,2]
[391533537,1760633578278,-166.71,0.00024063,2]
[391533538,1760633578287,-500.0,0.00024107,2]
[391533539,1760633578296,-500.0,0.00024107,2]
[391533540,1760633578306,-500.0,0.00024107,2]
[391533541,1760633578317,-1140.45,0.00024107,2]
[391533542,1760633578327,-1981.31,0.00024107,36]
[391533543,1760633578336,-500.0,0.00024108,2]
[391533544,1760633578346,-500.0,0.00024108,2]
[391533545,1760633578355,-242.69924436,0.00024108,2]
[391533546,1760633578364,-500.0,0.00024108,2]
[391533547,1760633578374,-500.0,0.00024108,2]
[391533548,1760633578383,-500.0,0.00024108,2]
[391533549,1760633578393,-500.0,0.00024108,2]
[391533550,1760633578403,-500.0,0.00024108,2]
[391533551,1760633578412,-500.0,0.00024108,2]
[391533552,1760633578422,-500.0,0.00024108,2]
[391533553,1760633578432,-500.0,0.00024108,2]
[391533554,1760633578441,-500.0,0.00024108,2]
[391533555,1760633578452,-390.63859541,0.00024108,2]
[391533556,1760633578463,-500.0,0.00024108,2]
[391533557,1760633578472,-500.0,0.00024108,2]
[391533558,1760633578482,-500.0,0.00024108,2]
[391533559,1760633578491,-500.0,0.00024108,2]
[391533560,1760633578501,-500.0,0.00024108,2]
[391533561,1760633578511,-500.0,0.00024108,2]
[391533562,1760633578520,-500.0,0.00024108,2]
[391533563,1760633578530,-500.0,0.00024108,2]
[391533564,1760633578539,-2938.13,0.00024108,2]
[391533565,1760633578549,-2938.13,0.00024108,2]
[391533566,1760633578558,-2938.13,0.00024108,2]
[391533567,1760633578567,-2938.13,0.00024108,2]
[391533568,1760633578576,-500.0,0.00024108,2]
[391533569,1760633578586,-500.0,0.00024108,2]
[391533570,1760633578595,-708.12,0.00024108,2]
[391533571,1760633578605,-708.12,0.00024108,2]
[391533572,1760633578615,-708.12,0.00024108,2]
[391533573,1760633578624,-708.12,0.00024108,2]
[391533574,1760633578633,-500.0,0.00024108,2]
[391533575,1760633578643,-500.0,0.00024108,2]
[391533576,1760633578653,-500.0,0.00024108,2]
[391533577,1760633578663,-500.0,0.00024108,2]
[391533578,1760633578672,-500.0,0.00024108,2]
[391533579,1760633578681,-500.0,0.00024108,2]
[391533580,1760633578691,-500.0,0.00024108,2]
[391533581,1760633578703,-500.0,0.00024108,2]
[391533582,1760633578713,-500.0,0.00024108,2]
[391533583,1760633578722,-351.10128926,0.00024108,2]
[391533584,1760633578732,-500.0,0.00024108,2]
[391533585,1760633578741,-500.0,0.00024108,2]
[391533586,1760633578751,-500.0,0.00024108,2]
[391533587,1760633578760,-500.0,0.00024108,2]
[391533588,1760633578771,-500.0,0.00024108,2]
[391533589,1760633578781,-164.96,0.00024108,2]
[391533590,1760633578792,-500.0,0.00024108,2]
[391533591,1760633578802,-500.0,0.00024108,2]
[391533592,1760633578812,-500.0,0.00024108,2]
[391533593,1760633578822,-500.0,0.00024108,2]
[391533594,1760633578832,-346.0,0.00024108,2]
[391533595,1760633578842,-434.72,0.00024108,2]
[391533596,1760633578851,-500.0,0.00024108,2]
[391533597,1760633578861,-500.0,0.00024108,2]
[391533598,1760633578871,-248.72,0.00024108,2]
[391533599,1760633578881,-600.0,0.0002411,2]
[391533600,1760633578890,-280.0,0.00024159,2]
[391533601,1760633578899,-158.86,0.00024402,2]
[391533602,1760633578909,-164.58780627,0.00024427,2]
[391533603,1760633578919,-152.0,0.00024547,4]
[391533604,1760633578931,-1724.05087596,0.00024592,2]
[391533605,1760633578941,-1000.0,0.00024598,2]
[391533606,1760633578951,-7200.0,0.000246,2]
[391533607,1760633578961,-451.74062,0.000246,2]
[391533608,1760633578972,-441.02556347,0.00024641,2]
[391533609,1760633578982,-1034.78,0.0002465,2]
[391533610,1760633578991,-1000.0,0.0002465,2]
[391533611,1760633579000,-1000.0,0.0002465,2]
[391533612,1760633579011,-1000.0,0.0002465,2]
[391533613,1760633579021,-500.0,0.00024657,2]
[391533614,1760633579030,-500.0,0.00024657,2]
[391533615,1760633579040,-500.0,0.00024657,2]
[391533616,1760633579049,-500.0,0.00024657,2]
[391533617,1760633579059,-500.0,0.00024657,2]
[391533618,1760633579068,-735.18,0.00024657,2]
[391533619,1760633579077,-500.0,0.00024657,10]
[391533620,1760633579087,-500.0,0.00024657,10]
[391533621,1760633579096,-500.0,0.00024657,10]
[391533622,1760633579106,-335.92,0.00024657,2]
[391533623,1760633579115,-335.92,0.00024657,2]
[391533624,1760633579124,-335.92,0.00024657,2]
[391533625,1760633579133,-335.92,0.00024657,2]
[391533626,1760633579142,-335.92,0.00024657,2]
[391533627,1760633579152,-335.92,0.00024657,2]
[391533628,1760633579161,-335.92,0.00024657,2]
[391533629,1760633579170,-335.92,0.00024657,2]
[391533630,1760633579179,-335.92,0.00024657,2]
[391533631,1760633579189,-335.92,0.00024657,2]
[391533632,1760633579200,-335.92,0.00024657,2]
[391533633,1760633579210,-335.92,0.00024657,2]
[391533634,1760633579220,-335.92,0.00024657,2]
[391533635,1760633579230,-335.92,0.00024657,2]
[391533636,1760633579239,-335.92,0.00024657,2]
[391533637,1760633579249,-335.92,0.00024657,2]
[391533638,1760633579258,-335.92,0.00024657,2]
[391533639,1760633579268,-335.92,0.00024657,2]
[391533640,1760633579278,-335.92,0.00024657,2]
[391533641,1760633579289,-335.92,0.00024657,2]
[391533642,1760633579300,-335.92,0.00024657,2]
[391533643,1760633579310,-335.92,0.00024657,2]
[391533644,1760633579417,-335.92,0.00024657,2]
[391533645,1760633579428,-336.07703782,0.00024657,2]
[391533646,1760633579438,-500.0,0.00024657,2]
[391533647,1760633579448,-500.0,0.00024657,2]
[391533648,1760633579458,-500.0,0.00024657,2]
[391533649,1760633579467,-1000.0,0.00024658,7]
[391533650,1760633579476,-1000.0,0.00024658,7]
[391533651,1760633579485,-1000.0,0.00024658,7]
[391533652,1760633579495,-1000.0,0.00024658,7]
[391533653,1760633579505,-1000.0,0.00024658,7]
[391533654,1760633579514,-1000.0,0.00024658,7]
[391533655,1760633579524,-1000.0,0.00024658,7]
[391533656,1760633579534,-1000.0,0.00024658,7]
[391533657,1760633579544,-1000.0,0.00024658,7]
[391533658,1760633579554,-1000.0,0.00024658,7]
[391533659,1760633579563,-1000.0,0.00024658,7]
[391533660,1760633579573,-1000.0,0.00024658,7]
[391533661,1760633579582,-1000.0,0.00024658,7]
[391533662,1760633579592,-1000.0,0.00024658,7]
[391533663,1760633579601,-1000.0,0.00024658,7]
[391533664,1760633579614,-1000.0,0.00024658,7]
[391533665,1760633579624,-1000.0,0.00024658,7]
[391533666,1760633579634,-1000.0,0.00024658,7]
[391533667,1760633579643,-1000.0,0.00024658,7]
[391533668,1760633579653,-1000.0,0.00024658,7]
[391533669,1760633579662,-1000.0,0.00024658,7]
[391533670,1760633579672,-1000.0,0.00024658,7]
[391533671,1760633579680,-1000.0,0.00024658,7]
[391533672,1760633579690,-1000.0,0.00024658,7]
[391533673,1760633579702,-1000.0,0.00024658,7]
[391533674,1760633579712,-1000.0,0.00024658,7]
[391533675,1760633579721,-1000.0,0.00024658,7]
[391533676,1760633579730,-1000.0,0.00024658,7]
[391533677,1760633579740,-1000.0,0.00024658,7]
[391533678,1760633579749,-1000.0,0.00024658,7]
[391533679,1760633579758,-1000.0,0.00024658,7]
[391533680,1760633579768,-1000.0,0.00024658,7]
[391533681,1760633579777,-1000.0,0.00024658,7]
[391533682,1760633579787,-1000.0,0.00024658,7]
[391533683,1760633579796,-1000.0,0.00024658,7]
[391533684,1760633579805,-1000.0,0.00024658,7]
[391533685,1760633579815,-1000.0,0.00024658,7]
[391533686,1760633579824,-1000.0,0.00024658,7]
[391533687,1760633579833,-1000.0,0.00024658,7]
[391533688,1760633579843,-1000.0,0.00024658,7]
[391533689,1760633579852,-1000.0,0.00024658,7]
[391533690,1760633579861,-1000.0,0.00024658,7]
[391533691,1760633579871,-1000.0,0.00024658,7]
[391533692,1760633579880,-1000.0,0.00024658,7]
[391533693,1760633579889,-1000.0,0.00024658,7]
[391533694,1760633579898,-1000.0,0.00024658,7]
[391533695,1760633579908,-1000.0,0.00024658,7]
[391533696,1760633579917,-1000.0,0.00024658,7]
[391533697,1760633579930,-1000.0,0.00024658,7]
[391533698,1760633579939,-1000.0,0.00024658,7]
[391533699,1760633579951,-1000.0,0.00024658,7]
[391533700,1760633579960,-1000.0,0.00024658,7]
[391533701,1760633579970,-1000.0,0.00024658,7]
[391533702,1760633579979,-1000.0,0.00024658,7]
[391533703,1760633579988,-1000.0,0.00024658,7]
[391533704,1760633579997,-1000.0,0.00024658,7]
[391533705,1760633580009,-1000.0,0.00024658,7]
[391533706,1760633580019,-1000.0,0.00024658,7]
[391533707,1760633580028,-1000.0,0.00024658,7]
[391533708,1760633580038,-1000.0,0.00024658,7]
[391533709,1760633580047,-1000.0,0.00024658,7]
[391533710,1760633580057,-1000.0,0.00024658,7]
[391533711,1760633580066,-1000.0,0.00024658,7]
[391533712,1760633580076,-1979.50685354,0.00024658,7]
[391533713,1760633580085,-1000.0,0.00024658,2]
[391533714,1760633580094,-528.49,0.00024658,2]
[391533715,1760633580103,-300.0,0.00024658,30]
[391533716,1760633580113,-300.0,0.00024658,30]
[391533717,1760633580123,-400.0,0.00024658,30]
[391533718,1760633580132,-600.0,0.00024658,2]
[391533719,1760633580141,-150.0,0.00024658,2]
[391533720,1760633580151,-257.48363871,0.00024658,2]
[391533721,1760633580159,-425.0,0.00024658,2]
[391533722,1760633580168,-601.59745026,0.00024676,2]
[391533723,1760633580177,-352.0,0.00024686,2]
[391533724,1760633580186,-3764.623053,0.0002471,2]
[391533725,1760633580195,-425.0,0.00024713,2]
[391533726,1760633580208,-416.77670354,0.00024749,2]
[391533727,1760633580218,-425.0,0.00024768,2]
[391533728,1760633580227,-194.9538651,0.00024773,2]
[391533729,1760633580236,-156618.69638429,0.0002478,2]
[391533730,1760633580250,-46481.06171937,0.0002478,2]
[391533731,1760633580261,-1600.0,0.0002478,2]
[391533732,1760633580271,-250.3158457,0.0002478,2]
[391533733,1760633580282,-19962.38254328,0.0002478,2]
[391533734,1760633580297,-18316.99271738,0.0002478,2]
[391533735,1760633580307,-1342.15968808,0.0002478,2]
[391533736,1760633580319,-5343.35632699,0.0002478,2]
[391533737,1760633580330,-437.6154585,0.0002478,2]
[391533738,1760633580341,-3242.807698,0.0002478,2]
[391533739,1760633580352,-284.88615674,0.0002478,2]
[391533740,1760633580363,-329.0207687,0.0002478,2]
[391533741,1760633580374,-2172.95400006,0.0002478,2]
[391533742,1760633580385,-503.94036539,0.0002478,2]
[391533743,1760633580475,-21570.9348,0.0002478,2]
[391533744,1760633580505,-294.80163754,0.0002478,2]
[391533745,1760633580515,-1254.44238458,0.0002478,2]
[391533746,1760633580527,-5168.39747908,0.0002478,2]
[391533747,1760633580538,-1084.7,0.0002478,2]
[391533748,1760633580553,-26404.00583118,0.0002478,2]
[391533749,1760633580562,-868.60620978,0.0002478,2]
[391533750,1760633580571,-151.0,0.0002478,7]
[391533751,1760633580580,-151.0,0.0002478,7]
[391533752,1760633580589,-151.0,0.0002478,7]
[391533753,1760633580599,-151.0,0.0002478,7]
[391533754,1760633580608,-151.0,0.0002478,7]
[391533755,1760633580617,-151.0,0.0002478,7]
[391533756,1760633580627,-154.364004,0.0002478,7]
[391533757,1760633580636,-270.337047,0.0002478,7]
[391533758,1760633580645,-151.0,0.0002478,7]
[391533759,1760633580654,-151.0,0.0002478,7]
[391533760,1760633580664,-151.0,0.0002478,7]
[391533761,1760633580674,-151.0,0.0002478,7]
[391533762,1760633580685,-151.0,0.0002478,7]
[391533763,1760633580694,-151.0,0.0002478,7]
[391533764,1760633580706,-354.169002,0.0002478,7]
[391533765,1760633580716,-151.0,0.0002478,7]
[391533766,1760633580726,-354.169002,0.0002478,7]
[391533767,1760633580736,-163.525826,0.0002478,7]
[391533768,1760633580745,-354.169002,0.0002478,7]
[391533769,1760633580755,-163.525826,0.0002478,7]
[391533770,1760633580764,-354.169002,0.0002478,7]
[391533771,1760633580774,-163.525826,0.0002478,7]
[391533772,1760633580784,-152.454081,0.0002478,7]
[391533773,1760633580793,-163.525826,0.0002478,7]
[391533774,1760633580803,-151.0,0.0002478,7]
[391533775,1760633580812,-151.0,0.0002478,7]
[391533776,1760633580821,-151.0,0.0002478,7]
[391533777,1760633580831,-151.0,0.0002478,7]
[391533778,1760633580840,-151.0,0.0002478,7]
[391533779,1760633580850,-151.0,0.0002478,7]
[391533780,1760633580859,-151.0,0.0002478,7]
[391533781,1760633580868,-151.0,0.0002478,7]
[391533782,1760633580877,-151.0,0.0002478,7]
[391533783,1760633580886,-151.0,0.0002478,7]
[391533784,1760633580896,-151.0,0.0002478,7]
[391533785,1760633580905,-151.0,0.0002478,7]
[391533786,1760633580914,-151.0,0.0002478,7]
[391533787,1760633580923,-151.0,0.0002478,7]
[391533788,1760633580935,-1103.3231612,0.00024796,2]
[391533789,1760633580944,-6550.7833348,0.00024796,2]